bitfinex/quotes_ETHUSD_20250821
["timestamp","ask_amount","ask_price","bid_price","bid_amount"]
[1755809509669,0.7373,4242.9,4242.8,3.001]
[1755809510034,0.7373,4242.9,4242.8,2.3579341]
[1755809510236,0.7373,4242.9,4242.8,3.001]
[1755809510946,0.7373,4242.9,4242.8,2.3579341]
[1755809511141,3.99,4243.4,4242.8,3.2965]
[1755809511471,0.2863,4242.9,4242.8,3.001]
[1755809511867,0.7373,4242.9,4242.8,3.001]
[1755809512162,0.7373,4242.9,4242.8,0.001]
[1755809516978,0.2863,4242.9,4242.8,0.001]
[1755809518598,0.451,4243.2,4242.8,0.001]
[1755809518772,3.99,4243.3,4242.9,5.35687448]
[1755809518965,0.451,4243.6,4243.2,0.2955]
[1755809519168,0.6276,4243.5,4242.9,2.35687276]
[1755809519366,4.441,4243.7,4242.8,2.35791946]
[1755809519593,4.441,4243.7,4242.8,0.001]
[1755809519814,4.441,4243.7,4242.9,2.35687855]
[1755809519964,0.451,4243.7,4243.2,2.35670332]
[1755809520161,5.825,4243.8,4243.4,2.35657535]
[1755809520418,1.835,4243.8,4243.7,2.65193424]
[1755809520703,0.022,4243.8,4243.7,6.09713424]
[1755809520862,0.022,4243.8,4243.7,6.94485818]
[1755809522501,0.022,4243.8,4243.7,7.65339118]
[1755809523281,0.022,4243.8,4243.7,8.31339118]
[1755809525830,0.02,4244.8,4244.2,3.01615663]
[1755809526015,0.02,4244.8,4244.2,10.32421819]
[1755809526188,0.02,4244.8,4244.2,12.01390166]
[1755809528389,0.02,4244.8,4244.2,6.91970166]
[1755809528594,0.3009,4244.3,4244.2,10.00515663]
[1755809529089,0.3009,4244.3,4244.2,9.34515663]
[1755809529289,0.3009,4244.3,4244.2,3.4308]
[1755809529290,0.7317,4244.3,4244.2,3.4308]
[1755809530015,0.7317,4244.3,4244.2,0.4308]
[1755809530192,0.7317,4244.3,4243.7,3.988]
[1755809530393,0.4308,4244.2,4244.0,5.35625677]
[1755809530593,0.7297,4244.1,4244.0,5.35625677]
[1755809530794,0.2989,4244.1,4244.0,2.35625677]
[1755809531010,0.002,4244.3,4244.1,2.35621215]
[1755809531492,0.7297,4244.2,4243.8,3.0]
[1755809531698,0.7297,4244.2,4243.8,5.35637785]
[1755809531699,0.2989,4244.2,4243.8,5.35637785]
[1755809531923,0.4308,4244.1,4243.8,5.35637785]
[1755809532135,0.002,4244.3,4243.9,0.2989]
[1755809532296,0.4308,4244.0,4243.9,0.2989]
[1755809532494,0.7297,4244.0,4243.9,2.65522319]
[1755809533041,0.7297,4244.0,4243.9,0.2989]
[1755809533597,0.7297,4244.0,4243.9,2.65522319]
[1755809534229,0.2989,4244.0,4243.9,2.65522319]
[1755809534438,0.002,4244.3,4244.0,2.35626767]
[1755809534728,0.002,4244.3,4243.9,0.2989]
[1755809534931,0.2989,4244.1,4244.0,2.35626767]
[1755809535297,0.002,4244.3,4244.2,2.35615663]
[1755809536608,0.3009,4244.3,4244.1,5.35619596]
[1755809536931,0.3009,4244.3,4244.0,5.35623844]
[1755809537145,0.4308,4244.2,4244.1,2.35621215]
[1755809537319,0.7297,4244.2,4244.0,5.35626026]
[1755809537761,0.7297,4244.2,4244.1,2.35621215]
[1755809537954,0.2989,4244.2,4244.0,5.35622479]
[1755809538242,0.2989,4244.2,4244.1,2.35621215]
[1755809538618,0.002,4244.3,4244.2,2.35615663]
[1755809538834,0.002,4244.3,4244.2,5.64495663]
[1755809539520,0.002,4244.3,4244.2,6.35343763]
[1755809539921,0.002,4244.3,4244.2,3.708481]
[1755809540132,0.3009,4244.3,4244.2,6.06463763]
[1755809543652,0.002,4244.3,4244.2,6.06463763]
[1755809543852,0.002,4244.3,4244.2,7.59432623]
[1755809544350,0.002,4244.3,4244.2,8.05612623]
[1755809544740,0.002,4244.3,4244.2,8.71612623]
[1755809550125,0.022,4244.8,4244.7,2.35587909]
[1755809550326,0.022,4244.8,4244.7,9.63167909]
[1755809550544,0.022,4244.8,4244.7,11.89600875]
[1755809550749,0.022,4244.8,4244.7,12.55600875]
[1755809551727,0.022,4244.8,4244.7,12.73675086]
[1755809553185,0.022,4244.8,4244.7,8.28795086]
[1755809553501,0.022,4244.8,4244.7,6.5226212]
[1755809553502,0.7517,4244.8,4244.7,6.5226212]
[1755809553775,0.7517,4244.8,4244.7,9.5226212]
[1755809553976,0.7517,4244.8,4244.7,5.5366212]
[1755809554348,0.7517,4244.8,4244.7,0.18074211]
[1755809554684,0.65714195,4246.8,4244.8,0.66]
[1755809554845,0.02,4246.8,4246.7,2.35476958]
[1755809555045,0.02,4247.8,4246.7,2.35476958]
[1755809555046,0.02,4247.8,4247.7,2.35421522]
[1755809555248,0.02,4247.8,4247.7,10.30201522]
[1755809555478,0.4308,4249.0,4248.7,2.35366111]
[1755809555696,0.4308,4249.3,4248.7,2.35366111]
[1755809556265,0.7497,4248.8,4248.7,2.35366111]
[1755809557654,0.7497,4248.8,4248.5,3.0]
[1755809557867,0.4586,4248.7,4248.4,5.35382732]
[1755809558059,0.2897,4248.5,4248.4,5.35382732]
[1755809558257,0.02,4248.8,4248.6,2.35371651]
[1755809558581,0.02,4248.8,4248.7,0.02353661]
[1755809558875,0.02,4248.8,4248.7,5.37719772]
[1755809559080,0.499,4249.7,4248.7,9.16839142]
[1755809559249,0.499,4249.7,4249.6,3.01316265]
[1755809559592,0.499,4249.7,4249.6,10.37789427]
[1755809559749,0.20142857,4250.0,4249.9,3.01299654]
[1755809559954,1e-08,4250.0,4249.9,10.3787265]
[1755809560149,1e-08,4250.0,4249.9,12.15684338]
[1755809560493,1e-08,4250.0,4249.9,12.33614508]
[1755809560646,0.02,4250.8,4250.7,3.01255369]
[1755809560851,0.02,4250.8,4250.7,10.35775369]
[1755809561280,0.02,4250.8,4250.7,10.78665369]
[1755809562477,0.02,4250.8,4250.7,11.28013369]
[1755809562682,0.02,4250.8,4250.7,10.85123369]
[1755809563047,0.02,4250.8,4250.7,6.01255369]
[1755809563275,0.02,4250.8,4250.7,10.06455369]
[1755809564178,0.7683,4250.8,4250.7,7.05]
[1755809564379,0.02,4250.8,4250.7,10.35375369]
[1755809564968,0.02,4250.8,4250.7,10.78265369]
[1755809565146,0.02,4250.8,4250.7,12.09618474]
[1755809565552,0.02,4252.8,4251.7,3.01200037]
[1755809565752,0.02,4252.8,4251.7,10.37672037]
[1755809565987,0.02,4252.8,4251.7,10.78210037]
[1755809566289,1e-08,4251.8,4251.7,10.78210037]
[1755809566470,1e-08,4251.8,4251.7,12.39421841]
[1755809567085,0.02,4252.8,4252.7,3.01144731]
[1755809567275,0.02,4252.8,4252.7,10.35264731]
[1755809567592,0.02,4252.8,4252.7,10.78154731]
[1755809568255,0.02,4252.8,4252.7,6.30264731]
[1755809568456,0.02,4252.8,4252.7,10.35264731]
[1755809568882,0.02,4252.8,4252.7,10.52563272]
[1755809569286,0.02,4252.8,4252.7,12.43510858]
[1755809569583,0.02,4252.8,4252.7,7.95620858]
[1755809569769,0.02,4252.8,4252.7,12.43310858]
[1755809569997,0.02,4252.8,4252.7,12.00420858]
[1755809570175,0.02,4252.8,4252.7,12.46280858]
[1755809570356,0.02,4252.8,4252.7,12.89170858]
[1755809570556,1e-08,4252.8,4252.7,26.48362382]
[1755809570907,0.4586,4254.5,4253.7,3.01089451]
[1755809571065,0.4586,4254.5,4253.7,10.05589451]
[1755809571261,0.02,4254.8,4253.7,10.05689451]
[1755809571584,0.02,4254.8,4253.7,6.01089451]
[1755809571585,0.4586,4254.2,4253.7,6.01089451]
[1755809571896,0.3097,4253.8,4253.7,10.05589451]
[1755809572101,0.3097,4253.8,4253.7,3.0]
[1755809572252,0.7683,4253.8,4252.7,0.63158541]
[1755809572459,0.4586,4253.7,4252.7,3.63158541]
[1755809572792,0.2897,4252.8,4252.7,7.67958541]
[1755809573162,0.2897,4252.8,4252.7,10.03103272]
[1755809575084,0.02,4253.8,4252.8,3.0]
[1755809575258,0.4586,4253.5,4253.0,3.0]
[1755809575603,0.02,4253.8,4253.7,2.35089451]
[1755809575800,0.3097,4253.8,4253.7,2.35089451]
[1755809576296,0.7683,4253.8,4253.7,2.35089451]
[1755809576812,0.02,4253.8,4253.7,2.35089451]
[1755809576960,0.02,4253.8,4253.7,6.05773851]
[1755809577307,0.02,4253.8,4253.7,10.76173851]
[1755809581512,0.02,4253.8,4253.7,12.07301069]
[1755809581869,0.02,4253.8,4253.7,10.76173851]
[1755809583520,0.02,4253.8,4253.7,6.05773851]
[1755809583521,0.3097,4253.8,4253.7,6.05773851]
[1755809583725,0.7683,4253.8,4253.7,6.05773851]
[1755809584288,0.3097,4253.8,4253.7,6.05773851]
[1755809584922,0.7683,4253.8,4253.7,6.05773851]
[1755809585429,1e-08,4253.8,4253.7,12.31270911]
[1755809586432,1e-08,4253.8,4253.7,12.43030911]
[1755809587292,1e-08,4253.8,4253.7,12.43930911]
[1755809587487,1e-08,4253.8,4253.7,12.01040911]
[1755809587728,1e-08,4253.8,4253.7,12.43930911]
[1755809589026,1e-08,4253.8,4253.7,7.84980911]
[1755809590527,1e-08,4253.8,4253.7,8.29720911]
[1755809591729,1e-08,4253.8,4253.7,7.84980911]
[1755809591903,0.02,4254.8,4253.8,6.01083924]
[1755809592106,0.2,4255.0,4254.9,5.35023149]
[1755809592308,0.5137,4255.0,4254.9,5.52690448]
[1755809592504,0.9718,4255.0,4254.9,5.52690448]
[1755809592827,0.9718,4255.0,4254.9,3.17667299]
[1755809593127,0.9718,4255.0,4254.9,3.88335199]
[1755809593506,0.5137,4255.0,4254.9,6.23358348]
[1755809593908,0.2,4255.0,4254.9,7.39006525]
[1755809594112,0.2,4255.0,4254.9,8.05006525]
[1755809594444,1e-08,4255.0,4254.9,8.05006525]
[1755809594609,1e-08,4255.0,4254.9,8.61506525]
[1755809595200,1e-08,4255.8,4255.7,3.00978969]
[1755809595402,1e-08,4255.8,4255.7,10.59175539]
[1755809595603,1e-08,4255.8,4255.7,10.88985539]
[1755809595828,1e-08,4255.8,4255.7,11.33725539]
[1755809596229,1e-08,4255.8,4255.7,11.45485539]
[1755809596431,1e-08,4255.8,4255.7,11.00945539]
[1755809596841,0.31370001,4255.8,4255.7,3.0]
[1755809597133,0.77180001,4255.8,4255.2,4.048]
[1755809597343,0.77180001,4255.8,4255.4,2.34994951]
[1755809597641,1e-08,4255.8,4255.7,3.00978969]
[1755809597801,0.31370001,4255.8,4255.5,3.0]
[1755809598102,0.77180001,4255.8,4255.7,2.34978969]
[1755809598437,0.77180001,4255.8,4254.9,4.09192064]
[1755809598438,0.77180001,4255.8,4254.9,1.74173376]
[1755809598636,0.77180001,4255.8,4255.0,8.25117338]
[1755809598828,0.77180001,4255.8,4255.7,2.34978969]
[1755809599029,0.31370001,4255.8,4255.7,2.34978969]
[1755809599228,0.77180001,4255.8,4255.0,1.20017338]
[1755809599427,0.4581,4255.7,4255.1,3.0]
[1755809599737,0.3137,4255.2,4255.1,3.0]
[1755809599938,1e-08,4255.8,4255.2,2.3500658]
[1755809600138,1e-08,4255.8,4255.3,0.0235001]
[1755809600348,1e-08,4255.8,4255.7,2.34978969]
[1755809600507,0.31370001,4255.8,4255.6,2.34984099]
[1755809600715,0.31370001,4255.8,4255.7,2.37328758]
[1755809601043,0.77180001,4255.8,4255.7,2.37328758]
[1755809601344,1e-08,4255.8,4255.7,2.37328758]
[1755809602218,0.31370001,4255.8,4255.7,2.37328758]
[1755809602427,0.77180001,4255.8,4255.7,0.706492]
[1755809602830,0.77180001,4255.8,4255.7,6.05628169]
[1755809603027,0.31370001,4255.8,4255.7,6.05628169]
[1755809603447,0.77180001,4255.8,4255.7,6.05628169]
[1755809604222,0.31370001,4255.8,4255.7,6.05628169]
[1755809604620,0.77180001,4255.8,4255.7,6.05628169]
[1755809605452,1e-08,4255.8,4255.7,6.35438169]
[1755809605637,1e-08,4255.8,4255.7,7.2248079]
[1755809607047,1e-08,4255.8,4255.7,7.8848079]
[1755809607450,1e-08,4255.8,4255.7,8.3322079]
[1755809607953,1e-08,4255.8,4255.7,8.4498079]
[1755809609481,1e-08,4256.1,4256.0,6.00962406]
[1755809609775,1e-08,4256.1,4256.0,10.35972406]
[1755809609975,1e-08,4256.1,4256.0,10.92472406]
[1755809611363,0.499,4257.0,4256.0,10.92472406]
[1755809611364,1e-08,4256.8,4256.7,3.00923767]
[1755809611556,1e-08,4256.8,4256.7,10.65826144]
[1755809611774,1e-08,4256.8,4256.7,11.10566144]
[1755809611989,1e-08,4256.8,4256.7,10.65826144]
[1755809612482,1e-08,4256.8,4256.7,11.10566144]
[1755809612880,1e-08,4257.0,4256.9,3.00912729]
[1755809613083,1e-08,4257.0,4256.9,6.00912729]
[1755809613252,1e-08,4257.0,4256.9,10.05812729]
[1755809614171,0.31370001,4257.0,4256.9,6.46722729]
[1755809614893,1e-08,4257.0,4256.9,7.66189746]
[1755809615058,1e-08,4257.0,4256.9,8.22689746]
[1755809615393,1.807,4258.4,4256.9,8.22689746]
[1755809615394,1e-08,4258.0,4257.9,3.00857558]
[1755809615558,1e-08,4258.0,4257.9,6.30667558]
[1755809615888,1e-08,4258.0,4257.9,7.84131177]
[1755809616200,1e-08,4258.0,4257.9,8.09990677]
[1755809617089,0.02,4258.8,4258.7,2.3481344]
[1755809617386,0.02,4258.8,4258.7,5.56494438]
[1755809617387,0.7918,4258.8,4258.7,5.56494438]
[1755809617771,0.7918,4258.8,4258.7,6.27091238]
[1755809618387,0.7918,4258.8,4258.7,6.4463697]
[1755809619889,0.7918,4258.8,4258.7,6.4458581]
[1755809623089,0.7918,4258.8,4258.7,6.44568968]
[1755809623756,0.7918,4258.8,4258.7,4.09757523]
[1755809624661,0.7918,4258.8,4258.7,6.44570963]
[1755809624891,0.7918,4258.8,4258.7,4.09757523]
[1755809625563,1.45618,4258.8,4258.7,4.09757523]
[1755809625981,0.02,4258.8,4258.7,6.44570963]
[1755809626462,0.02,4258.8,4258.7,6.74360963]
[1755809626973,0.02,4258.8,4258.7,6.44570963]
[1755809627365,0.3231,4258.8,4258.7,6.44570963]
[1755809627561,0.02,4258.8,4258.7,6.74360963]
[1755809627787,0.02,4259.8,4259.7,2.34758316]
[1755809628098,0.02,4259.8,4259.7,0.21614991]
[1755809628099,0.3231,4259.8,4259.7,0.21614991]
[1755809628307,0.769,4259.8,4259.7,0.21614991]
[1755809628508,0.769,4259.8,4259.7,0.92209391]
[1755809629622,0.769,4259.8,4259.7,0.21605537]
[1755809629917,1.2513,4259.8,4259.7,0.21605537]
[1755809630218,7.1123,4259.8,4259.7,0.21605537]
[1755809630418,6.63,4259.8,4259.7,0.21605537]
[1755809632276,6.63,4259.8,4258.7,0.17545732]
[1755809632575,4.4969,4259.7,4259.1,2.34785957]
[1755809632805,4.7137,4259.6,4259.2,0.21637734]
[1755809633004,4.7137,4259.6,4259.3,0.21642386]
[1755809633224,0.4459,4259.5,4259.4,0.21645926]
[1755809633679,0.749,4259.5,4259.4,0.21645926]
[1755809634500,4.799,4259.5,4259.4,0.21645926]
[1755809634702,1.4116,4259.5,4259.4,0.21645926]
[1755809634906,4.797,4259.5,4259.4,0.21645926]
[1755809635473,4.796,4259.5,4259.4,0.21645926]
[1755809637389,0.749,4259.5,4259.4,0.21645926]
[1755809638119,4.801,4259.5,4259.4,0.21645926]
[1755809639317,4.801,4259.5,4259.4,0.21760276]
[1755809639484,5.4638,4259.5,4259.4,0.21760276]
[1755809639678,1.4118,4259.5,4259.4,0.21760276]
[1755809639879,4.802,4259.5,4259.4,0.21760276]
[1755809640716,4.802,4259.5,4258.7,0.1772217]
[1755809640717,5.44030332,4259.5,4258.7,0.1772217]
[1755809640930,17.06099361,4258.8,4257.8,0.02]
[1755809641093,0.3031,4257.9,4257.8,0.02]
[1755809641417,4.052,4257.9,4257.8,0.02]
[1755809641616,4.801,4257.9,4257.8,0.02]
[1755809641812,3.0351,4257.9,4257.8,0.02]
[1755809641993,7.0981,4257.9,4257.8,0.02]
[1755809642189,6.6522,4257.9,4257.8,0.02]
[1755809643181,7.0981,4257.9,4257.8,0.02]
[1755809643609,7.0981,4257.9,4257.8,0.19253128]
[1755809643811,7.0981,4257.9,4257.8,0.02]
[1755809644925,3.0351,4257.9,4257.8,0.02]
[1755809645240,7.0951,4257.9,4257.8,0.02]
[1755809645436,1.807,4259.2,4258.2,2.34839599]
[1755809645730,1.807,4259.2,4258.3,0.47258354]
[1755809645731,4.086,4259.1,4258.3,0.47258354]
[1755809646035,4.086,4259.1,4258.4,3.0]
[1755809646233,4.086,4259.1,4258.6,2.34818352]
[1755809646535,4.086,4259.1,4258.7,2.34813032]
[1755809646750,0.02,4259.8,4259.0,0.2979]
[1755809646901,1.807,4259.6,4259.5,2.34769339]
[1755809647106,0.02,4259.8,4259.5,3.2979]
[1755809647346,4.086,4259.7,4259.6,3.0]
[1755809647555,4.086,4259.7,4259.6,2.64553827]
[1755809647906,0.02,4259.8,4259.7,2.34758316]
[1755809648132,0.02,4259.8,4259.7,0.313]
[1755809648133,4.106,4259.8,4259.7,0.313]
[1755809648336,4.106,4259.8,4259.4,2.34769431]
[1755809648533,4.106,4259.8,4259.7,0.313]
[1755809648757,4.106,4259.8,4258.7,3.05406644]
[1755809648758,5.0072,4259.8,4258.7,0.705975]
[1755809648941,5.0072,4259.8,4259.0,2.34794933]
[1755809649138,0.9212,4259.8,4258.8,3.0]
[1755809649344,4.085,4259.7,4259.0,2.34792188]
[1755809649878,0.4409,4259.6,4258.7,3.705975]
[1755809650033,0.4409,4259.6,4258.7,3.05409729]
[1755809650229,0.4409,4259.6,4258.1,0.4472]
[1755809650431,4.083,4259.5,4258.2,0.0234841]
[1755809650631,0.02,4259.8,4259.4,3.313]
[1755809650850,4.085,4259.7,4259.4,3.313]
[1755809651051,0.02,4259.8,4259.5,0.4472]
[1755809651269,0.02,4259.8,4259.7,5.66058316]
[1755809651675,0.02,4259.8,4259.7,6.10778316]
[1755809652167,0.02,4259.8,4259.7,6.76778316]
[1755809652527,0.02,4259.8,4259.7,5.66058316]
[1755809652723,0.02,4259.8,4259.7,5.87761686]
[1755809653886,0.02,4259.8,4259.7,6.32481686]
[1755809655004,0.02,4259.8,4259.7,0.2170337]
[1755809655155,0.3299,4259.8,4259.7,0.2170337]
[1755809655360,4.4189,4259.8,4259.7,0.2170337]
[1755809655560,5.30169,4259.8,4259.7,0.2170337]
[1755809655858,0.46189,4259.8,4259.7,0.5300337]
[1755809656062,0.002,4260.3,4260.2,2.34730763]
[1755809656255,0.002,4260.3,4260.2,6.53734133]
[1755809656467,0.002,4260.3,4260.2,6.98454133]
[1755809657084,1e-08,4260.3,4260.2,6.98454133]
[1755809657260,1e-08,4260.3,4260.2,7.91773392]
[1755809657663,1e-08,4260.3,4260.2,7.25773392]
[1755809657978,1e-08,4260.3,4260.2,12.02773392]
[1755809658179,0.02,4261.8,4260.7,2.34703217]
[1755809658378,0.02,4261.8,4260.7,5.87706587]
[1755809658700,0.02,4261.8,4260.7,7.44668354]
[1755809659407,0.02,4261.8,4260.7,8.10585077]
[1755809660114,0.02,4261.8,4260.7,5.8762331]
[1755809660316,0.02,4261.8,4260.7,6.3234331]
[1755809660499,0.02,4261.8,4260.7,6.9834331]
[1755809661412,0.002,4261.2,4260.7,6.9834331]
[1755809661612,0.002,4261.2,4260.7,7.6890061]
[1755809662415,0.002,4261.2,4260.7,7.68863025]
[1755809662624,0.002,4261.2,4260.7,12.80620603]
[1755809664185,0.002,4261.2,4260.7,11.69900603]
[1755809664383,0.002,4261.2,4260.7,10.99343303]
[1755809664946,0.002,4261.2,4260.7,11.65343303]
[1755809665090,0.002,4261.2,4260.7,12.10063303]
[1755809666209,0.002,4261.2,4260.7,10.98543303]
[1755809666389,0.002,4261.2,4260.7,12.09263303]
[1755809666590,0.002,4261.2,4260.7,12.18671103]
[1755809667907,1e-08,4260.8,4260.7,12.18671103]
[1755809668304,1e-08,4260.8,4260.7,11.97088595]
[1755809668523,1e-08,4260.8,4260.7,11.08103322]
[1755809668731,1e-08,4260.8,4260.7,11.74103322]
[1755809668931,1e-08,4260.8,4260.7,11.74103347]
[1755809669598,1e-08,4260.8,4260.7,12.18823347]
[1755809670239,0.30990001,4260.8,4260.7,9.66737969]
[1755809670399,0.75080001,4260.8,4260.7,9.66737969]
[1755809670833,1e-08,4260.8,4260.7,10.42757969]
[1755809671035,1e-08,4260.8,4260.7,11.08757969]
[1755809671235,1e-08,4260.8,4260.7,12.44276627]
[1755809671422,1e-08,4260.8,4260.7,7.89056627]
[1755809671621,1e-08,4260.8,4260.7,11.69256627]
[1755809671829,1e-08,4260.8,4260.7,5.56233554]
[1755809672301,0.30990001,4260.8,4260.7,5.56233554]
[1755809672506,0.75080001,4260.8,4260.7,5.56233554]
[1755809672711,0.75080001,4260.8,4260.7,0.21530337]
[1755809672931,1e-08,4260.8,4260.7,2.56233554]
[1755809673131,0.30990001,4260.8,4260.7,3.21530337]
[1755809673406,0.75080001,4260.8,4260.7,0.21530337]
[1755809673626,0.30990001,4260.8,4260.7,2.56233554]
[1755809673838,1e-08,4260.8,4260.7,2.56233554]
[1755809674026,0.75080001,4260.8,4260.7,2.56233554]
[1755809674225,1e-08,4260.8,4260.7,2.56233554]
[1755809674444,0.30990001,4260.8,4260.7,2.56233554]
[1755809674845,0.30990001,4260.8,4260.7,0.21530337]
[1755809675047,0.75080001,4260.8,4260.7,0.21530337]
[1755809675466,0.02,4261.8,4261.7,2.34648145]
[1755809675668,0.02,4261.8,4261.7,11.09998482]
[1755809676325,0.02,4261.8,4261.7,11.21758482]
[1755809676919,0.02,4261.8,4261.7,11.28258482]
[1755809677145,1e-08,4261.8,4261.7,11.16498482]
[1755809677346,1e-08,4261.8,4261.7,12.70839904]
[1755809677546,1e-08,4261.8,4261.7,12.49109567]
[1755809677725,1e-08,4261.8,4261.7,12.8012291]
[1755809678052,1e-08,4261.8,4261.7,12.80124943]
[1755809678621,0.05860001,4261.8,4261.7,5.65663521]
[1755809678816,0.05860001,4261.8,4261.7,5.56258121]
[1755809679653,1e-08,4261.8,4261.7,5.56258121]
[1755809680122,1e-08,4261.8,4261.7,5.86898121]
[1755809680321,1e-08,4261.8,4261.7,5.56258121]
[1755809682263,0.05860001,4261.8,4261.7,5.56258121]
[1755809684884,1e-08,4261.8,4261.7,5.56258121]
[1755809685356,1e-08,4261.8,4261.7,0.21609976]
[1755809685357,0.05860001,4261.8,4261.7,0.21609976]
[1755809685555,0.24526001,4261.8,4261.7,0.21609976]
[1755809686952,1.68526001,4261.8,4261.7,0.21736574]
[1755809687156,1.68526001,4261.8,4259.4,2.889]
[1755809687398,17.06099361,4261.0,4259.4,2.889]
[1755809687564,3.51109936,4260.9,4259.4,2.889]
[1755809687756,3.51109936,4260.9,4259.9,2.34746803]
[1755809687960,3.56969936,4260.9,4259.9,2.34746803]
[1755809688281,0.18666001,4261.8,4259.9,2.34746803]
[1755809688282,0.0586,4261.5,4260.1,3.0]
[1755809688483,0.0586,4261.5,4260.6,2.34707476]
[1755809688783,0.0586,4261.5,4260.3,5.34719979]
[1755809688990,0.0586,4261.5,4260.3,2.34719979]
[1755809689295,0.0586,4261.5,4260.5,2.34712238]
[1755809689460,0.18636,4261.4,4260.6,2.34706783]
[1755809689661,0.18636,4261.4,4260.5,2.34712892]
[1755809690071,0.18636,4261.4,4260.7,2.34703198]
[1755809690279,0.18636,4261.4,4260.6,2.34704858]
[1755809690519,0.18636,4261.4,4260.3,0.02347252]
[1755809690810,1e-08,4261.8,4261.5,2.34658342]
[1755809690985,1e-08,4261.8,4260.8,3.0]
[1755809690986,1e-08,4261.8,4261.1,3.0]
[1755809691299,1e-08,4261.8,4261.7,2.34648145]
[1755809691800,1e-08,4261.8,4261.5,2.34655099]
[1755809692097,0.28690001,4261.8,4261.4,2.34663246]
[1755809692396,0.28690001,4261.8,4261.1,5.34679528]
[1755809692558,1e-08,4261.8,4261.6,2.34653595]
[1755809693103,1e-08,4261.8,4261.5,2.3465801]
[1755809693398,1e-08,4261.8,4261.3,5.34669305]
[1755809693702,1e-08,4261.8,4261.6,2.34652362]
[1755809694058,1e-08,4261.8,4261.7,2.34648145]
[1755809694259,1e-08,4261.8,4260.7,5.2754]
[1755809694577,1e-08,4261.8,4261.4,2.34662725]
[1755809694954,1e-08,4261.8,4261.3,3.0]
[1755809695380,1e-08,4261.8,4261.4,2.34664539]
[1755809695775,1e-08,4261.8,4261.5,2.34656196]
[1755809695980,1e-08,4261.8,4261.6,2.34651178]
[1755809696189,1e-08,4261.8,4261.4,2.34663484]
[1755809696394,1e-08,4261.8,4261.3,4.169]
[1755809696692,1e-08,4261.8,4261.3,5.346694]
[1755809696985,1e-08,4261.8,4261.4,2.34664336]
[1755809697187,1e-08,4261.8,4261.3,2.34670081]
[1755809697359,1e-08,4261.8,4261.4,2.34663956]
[1755809697559,1e-08,4261.8,4261.3,2.3466906]
[1755809697793,1e-08,4261.8,4261.2,9.51574876]
[1755809698088,1e-08,4261.8,4261.2,4.168]
[1755809698290,1e-08,4261.8,4261.3,3.0]
[1755809698494,0.2869,4261.3,4261.2,4.164]
[1755809698795,0.2869,4261.3,4260.9,5.34692118]
[1755809699000,0.2869,4261.3,4260.8,3.0]
[1755809699179,0.2869,4261.3,4260.9,2.34687534]
[1755809699499,0.2869,4261.3,4260.7,3.0]
[1755809699707,0.2869,4261.3,4260.6,3.0]
[1755809699868,0.2869,4261.3,4260.8,2.34697438]
[1755809700069,1e-08,4261.8,4260.6,3.0]
[1755809700293,1e-08,4261.8,4260.1,2.2754]
[1755809700294,0.40010001,4261.8,4260.5,4.162]
[1755809700496,0.40010001,4261.8,4260.5,3.0]
[1755809700694,0.099,4260.6,4260.3,3.0]
[1755809700900,0.099,4260.6,4260.0,5.34741784]
[1755809701099,1.805,4261.7,4260.5,0.3064]
[1755809701308,1.805,4261.7,4261.1,2.34678874]
[1755809701692,1.805,4261.7,4261.0,5.34686693]
[1755809702008,1.805,4261.7,4261.0,2.34686693]
[1755809702177,1.805,4261.7,4261.3,2.34669192]
[1755809702379,2.4016,4261.7,4261.0,3.0]
[1755809702578,0.001,4261.4,4260.7,3.0]
[1755809702786,0.001,4261.4,4260.2,4.805]
[1755809702981,0.001,4261.4,4259.9,0.65074399]
[1755809702982,17.06099361,4261.3,4259.9,0.65074399]
[1755809703188,17.06099361,4261.3,4259.9,2.9982034]
[1755809703499,2.13229936,4261.2,4260.2,2.34729564]
[1755809703895,2.13229936,4261.2,4259.9,3.65074399]
[1755809704099,0.099,4261.1,4259.9,3.18034399]
[1755809704276,0.001,4260.0,4259.8,0.02]
[1755809704477,1.805,4260.3,4259.8,0.02]
[1755809704677,3.69159936,4260.2,4259.8,0.02]
[1755809704985,5.984,4260.5,4259.8,0.02]
[1755809705388,5.643,4261.9,4259.8,0.02]
[1755809705389,1.80500001,4261.8,4260.4,0.3064]
[1755809705683,4.19,4261.6,4260.4,0.3064]
[1755809705896,4.19,4261.6,4260.7,2.34700196]
[1755809706275,4.189,4261.7,4260.9,2.34691063]
[1755809706708,1e-08,4261.8,4261.1,3.0]
[1755809706909,1e-08,4261.8,4261.5,2.34655045]
[1755809707324,0.002,4261.6,4260.7,4.189]
[1755809707480,1e-08,4261.8,4260.6,3.0]
[1755809707686,1e-08,4261.8,4261.7,0.3064]
[1755809707915,1e-08,4261.8,4261.5,2.34656232]
[1755809708206,1e-08,4261.8,4261.6,2.34653562]
[1755809708389,1e-08,4261.8,4261.5,2.34658725]
[1755809708591,1e-08,4261.8,4261.5,2.34659157]
[1755809708786,0.002,4261.6,4260.2,2.34825804]
[1755809709115,6.191,4261.5,4260.2,0.001]
[1755809709313,1e-08,4261.8,4260.3,2.34725254]
[1755809709314,4.13139936,4261.4,4260.3,2.34725254]
[1755809709480,5.995,4261.4,4260.4,5.80036895]
[1755809709808,5.995,4261.4,4260.2,0.001]
[1755809710019,0.2,4261.3,4260.2,0.001]
[1755809710417,1.806,4261.4,4260.2,0.001]
[1755809710614,1.806,4261.4,4260.6,2.34708495]
[1755809710816,0.5999,4261.3,4260.8,3.0]
[1755809711114,1e-08,4261.8,4261.3,0.2941]
[1755809711484,1e-08,4261.8,4261.4,3.0]
[1755809711814,1e-08,4261.8,4261.7,5.64058145]